bitfinex-derivatives/quotes_SOLF0:USTF0_20260114
["timestamp","ask_amount","ask_price","bid_price","bid_amount"]
[1768422941416,2.10510421,147.33,147.25,17.42544759]
[1768422941809,8.21460421,147.33,147.28,0.04328558]
[1768422942309,2.10510421,147.33,147.28,0.04328558]
[1768422942514,0.04593776,147.33,147.28,0.04328558]
[1768422944213,0.04593776,147.33,147.28,11.35623317]
[1768422944414,0.04593776,147.33,147.28,17.46753317]
[1768422945714,0.04593776,147.33,147.28,11.35623317]
[1768422947610,0.04593776,147.33,147.28,0.04328558]
[1768422947819,6.15533776,147.33,147.28,0.04328558]
[1768422955426,6.1099,147.32,147.28,0.04328558]
[1768422958219,17.40269633,147.33,147.28,0.04328558]
[1768422960423,0.04593776,147.33,147.28,11.07682424]
[1768422960625,2.05916645,147.38,147.3,11.03353866]
[1768422961031,8.16666645,147.38,147.31,6.1101]
[1768422961219,11.24735857,147.4,147.32,11.03353866]
[1768422961220,13.30652502,147.4,147.32,11.03353866]
[1768422962032,0.04647935,147.37,147.35,0.04931387]
[1768422962228,11.24735857,147.36,147.29,11.03353866]
[1768422962528,11.24735857,147.36,147.21,107.3366]
[1768422962529,13.30652502,147.34,147.24,11.03353866]
[1768422963322,0.05048466,147.3,147.28,0.04656261]
[1768422965130,11.29784323,147.3,147.23,91.19353866]
[1768422965432,17.40844323,147.3,147.23,97.30683866]
[1768422965730,17.40844323,147.3,147.21,2.05916645]
[1768422965731,13.35700968,147.3,147.21,2.05916645]
[1768422965933,0.04829917,147.27,147.24,0.0503723]
[1768422966332,0.04829917,147.27,147.2,11.03353866]
[1768422967433,0.04829917,147.27,147.22,0.04995333]
[1768422971928,6.1108,147.3,147.22,11.08349199]
[1768422972132,11.24735857,147.29,147.22,11.03353866]
[1768422972733,17.35735857,147.32,147.23,13.09270511]
[1768422973039,0.0502763,147.29,147.26,0.05187548]
[1768422973728,6.1092,147.34,147.26,11.08541414]
[1768422973932,13.30652502,147.35,147.26,11.03353866]
[1768422974131,13.30652502,147.33,147.23,13.09270511]
[1768422974641,0.04839767,147.29,147.27,0.04439131]
[1768422975937,0.04839767,147.29,147.23,13.09270511]
[1768422976929,0.04839767,147.29,147.25,0.0514513]
[1768422982443,17.14062726,147.29,147.22,5.0]
[1768422982645,11.02962726,147.29,147.2,15.67756523]
[1768422982847,10.98122959,147.29,147.2,15.67756523]
[1768422983043,10.98122959,147.29,147.21,10.67756523]
[1768422983650,0.05187614,147.26,147.24,0.05211327]
[1768422985448,10.98122959,147.29,147.24,0.05211327]
[1768422986146,95.0253,147.35,147.24,0.05211327]
[1768422986348,43.69251981,147.64,147.24,0.05211327]
[1768422986349,189.9187,147.45,147.33,3.22850048]
[1768422986553,0.04326133,147.4,147.38,0.04917081]
[1768422986853,94.9237,147.51,147.37,3.22850048]
[1768422987046,94.9237,147.51,147.39,3.22850048]
[1768422987243,94.9324,147.49,147.39,3.22850048]
[1768422987853,0.04612145,147.45,147.39,3.22850048]
[1768422988251,10.98122959,147.44,147.35,6.1083]
[1768422988849,0.05207343,147.41,147.38,0.04996628]
[1768422989846,11.03330302,147.41,147.33,6.109]
[1768422990051,10.98122959,147.41,147.33,6.109]
[1768422990754,0.04514106,147.38,147.36,0.04539708]
[1768422991459,10.98122959,147.48,147.36,0.04539708]
[1768422991654,80.22,147.47,147.34,10.67756523]
[1768422991852,10.98122959,147.46,147.34,10.67756523]
[1768422992054,10.98122959,147.44,147.35,10.67756523]
[1768422992454,0.04637905,147.41,147.38,0.05090204]
[1768422993361,0.04637905,147.41,147.33,10.67756523]
[1768422993858,0.04637905,147.41,147.36,6.1077]
[1768422994061,0.04637905,147.41,147.35,10.67756523]
[1768422994360,0.04637905,147.41,147.37,0.04852713]
[1768422994767,0.04637905,147.41,147.37,6.15592713]
[1768422995064,94.903,147.54,147.38,10.67756523]
[1768422995065,10.98122959,147.48,147.38,10.67756523]
[1768422995267,91.18122959,147.47,147.38,10.67756523]
[1768422995459,10.98122959,147.46,147.38,16.78456523]
[1768422996165,0.04295,147.43,147.38,6.107]
[1768422997261,0.04295,147.43,147.39,0.04359192]
[1768422999262,10.98122959,147.46,147.39,6.15009192]
[1768422999468,75.0857492,147.42,147.39,16.82765715]
[1768422999969,6.1028,147.49,147.4,6.1063]
[1768422999970,80.18,147.45,147.4,6.1063]
[1768423000163,80.18,147.46,147.4,10.67756523]
[1768423000361,0.04402668,147.44,147.42,0.05137952]
[1768423001074,0.04402668,147.44,147.42,6.15677952]
[1768423001457,0.04402668,147.44,147.42,0.05137952]
[1768423002867,0.04402668,147.44,147.39,5.0]
[1768423003065,0.04402668,147.44,147.39,15.67756523]
[1768423003869,0.04402668,147.44,147.4,0.0491196]
[1768423004373,80.22402668,147.44,147.4,0.0491196]
[1768423009474,0.04402668,147.44,147.4,0.0491196]
[1768423009875,80.16,147.43,147.4,0.0491196]
[1768423012672,80.16,147.43,147.36,14.01295363]
[1768423012873,80.16,147.43,147.38,6.107]
[1768423013583,0.05172879,147.42,147.39,0.04840981]
[1768423015477,0.05172879,147.42,147.36,14.01295363]
[1768423015478,9.58645559,147.42,147.36,11.1078]
[1768423015781,9.58645559,147.42,147.36,6.1078]
[1768423015983,80.16,147.41,147.35,9.01295363]
[1768423016574,0.04953245,147.39,147.37,0.03735548]
[1768423016781,56.45334312,147.39,147.38,6.1072]
[1768423016980,21.54204312,147.39,147.38,6.1072]
[1768423017174,10.01994312,147.39,147.38,6.1072]
[1768423017380,12.75652639,147.44,147.38,6.1072]
[1768423017581,80.16,147.43,147.38,6.1072]
[1768423017780,0.04846598,147.42,147.38,6.1072]
[1768423019681,80.16,147.41,147.38,6.1072]
[1768423020180,80.16,147.4,147.38,6.1072]
[1768423020985,0.04846598,147.42,147.38,6.1072]
[1768423021185,80.16,147.41,147.38,6.1072]
[1768423022078,0.04846598,147.42,147.39,6.1068]
[1768423022283,80.16,147.41,147.39,6.1068]
[1768423022479,9.5347268,147.47,147.39,9.01295363]
[1768423022679,80.16,147.46,147.39,9.01295363]
[1768423023282,9.5347268,147.45,147.39,6.1066]
[1768423023488,0.0467402,147.43,147.39,6.1066]
[1768423024392,0.0467402,147.43,147.36,9.01295363]
[1768423024691,0.0467402,147.43,147.38,0.04435938]
[1768423025976,0.0467402,147.43,147.38,6.15135938]
[1768423026889,0.0467402,147.43,147.39,6.1068]
[1768423027791,0.0467402,147.43,147.4,6.1063]
[1768423027990,9.5347268,147.48,147.4,9.01295363]
[1768423028185,12.75652639,147.48,147.43,6.1049]
[1768423028393,80.16,147.47,147.43,6.1049]
[1768423028593,80.16,147.47,147.4,9.01295363]
[1768423029093,0.0487775,147.45,147.42,0.05173884]
[1768423029885,9.5835043,147.45,147.37,109.01825363]
[1768423030090,9.5835043,147.45,147.37,9.01295363]
[1768423031093,9.5835043,147.45,147.4,0.04887031]
[1768423031295,9.5835043,147.45,147.4,6.15517031]
[1768423033093,9.5835043,147.45,147.4,0.04887031]
[1768423033594,9.5835043,147.45,147.34,17.2177]
[1768423033595,9.5347268,147.41,147.36,6.1078]
[1768423033796,89.6947268,147.4,147.33,9.01295363]
[1768423033990,92.91652639,147.4,147.33,9.01295363]
[1768423034490,0.04330444,147.38,147.35,0.03269279]
[1768423034694,0.04701579,147.38,147.35,9.04564642]
[1768423035897,0.04701579,147.38,147.36,6.1081]
[1768423042998,7.64182659,147.46,147.39,6.1068]
[1768423043196,7.64182659,147.46,147.38,7.35619748]
[1768423043197,2.06330395,147.44,147.38,7.35619748]
[1768423043995,0.04300883,147.42,147.4,0.04597815]
[1768423044802,0.04300883,147.42,147.4,6.15207815]
[1768423047114,0.04300883,147.42,147.4,0.04597815]
[1768423047404,2.10631278,147.42,147.38,6.1069]
[1768423047605,2.10631278,147.42,147.36,7.35619748]
[1768423047811,0.04300883,147.42,147.37,7.35619748]
[1768423048315,0.04300883,147.42,147.38,7.38992791]
[1768423048810,0.04300883,147.42,147.4,6.1063]
[1768423049714,0.04300883,147.42,147.38,13.49682791]
[1768423050419,2.06330395,147.41,147.38,6.14063043]
[1768423051909,2.06330395,147.41,147.38,0.03373043]
[1768423053515,9.70513054,147.39,147.32,7.35619748]
[1768423054513,0.05143337,147.37,147.32,7.35619748]
[1768423054710,2.11473732,147.37,147.32,7.35619748]
[1768423055019,0.05143337,147.37,147.32,7.35619748]
[1768423055413,0.05143337,147.37,147.34,6.1088]
[1768423056324,2.11473732,147.37,147.32,13.46559748]
[1768423056514,2.11473732,147.37,147.32,7.35619748]
[1768423056817,0.05143337,147.37,147.32,7.35619748]
[1768423057917,0.05143337,147.37,147.3,7.35619748]
[1768423058115,0.05143337,147.37,147.31,7.35619748]
[1768423059818,0.05143337,147.37,147.33,6.1089]
[1768423060224,0.05143337,147.37,147.31,7.35619748]
[1768423060419,0.05143337,147.37,147.34,6.1087]
[1768423062319,6.787,147.55,147.34,6.1087]
[1768423062320,82.24330395,147.41,147.35,7.35619748]
[1768423062517,2.06330395,147.41,147.35,7.35619748]
[1768423062713,2.06330395,147.41,147.36,6.1079]
[1768423062915,87.82182659,147.43,147.36,6.1079]
[1768423063118,0.05131379,147.41,147.38,0.04990362]
[1768423064419,0.05131379,147.41,147.39,6.1067]
[1768423065024,0.05131379,147.41,147.38,0.04990362]
[1768423066926,0.05131379,147.41,147.38,6.15710362]
[1768423071330,0.05131379,147.41,147.38,0.04990362]
[1768423071530,0.05131379,147.41,147.34,11.24610792]
[1768423071829,0.05131379,147.41,147.34,6.24610792]
[1768423072331,2.06330395,147.45,147.38,6.24610792]
[1768423072530,7.97660589,147.45,147.38,6.24610792]
[1768423073127,2.06330395,147.41,147.34,11.24610792]
[1768423073328,7.97660589,147.41,147.34,6.24610792]
[1768423073530,2.11312846,147.39,147.32,6.24610792]
[1768423073722,0.04982451,147.39,147.36,0.05060886]
[1768423074336,5.91330194,147.43,147.36,6.29671678]
[1768423075329,0.05124868,147.41,147.36,6.29671678]
[1768423075926,0.05124868,147.41,147.38,6.1071]
[1768423076936,2.06330395,147.47,147.4,6.24610792]
[1768423077929,0.04442207,147.45,147.42,0.04527778]
[1768423078728,5.95772401,147.45,147.37,101.25140792]
[1768423079034,0.04442207,147.45,147.4,6.1063]
[1768423080735,0.04442207,147.45,147.38,12.35300792]
[1768423080935,0.04442207,147.45,147.38,6.24610792]
[1768423081446,0.04442207,147.45,147.4,6.15107311]
[1768423082534,0.04442207,147.45,147.4,0.04477311]
[1768423082734,5.95772401,147.45,147.4,0.04477311]
[1768423083326,5.95772401,147.45,147.4,6.15107311]
[1768423083734,2.06330395,147.44,147.4,0.04477311]
[1768423084632,5.95772401,147.45,147.4,0.04477311]
[1768423085229,7.97660589,147.44,147.4,0.04477311]
[1768423085830,5.91330194,147.44,147.4,0.04477311]
[1768423086033,5.91330194,147.4,147.35,5.0]
[1768423086338,7.97660589,147.4,147.32,6.24610792]
[1768423087038,0.04683995,147.37,147.32,6.24610792]
[1768423087939,0.04683995,147.37,147.34,6.1087]
[1768423088235,5.91330194,147.43,147.34,6.24610792]
[1768423088428,7.97660589,147.43,147.34,6.24610792]
[1768423089237,5.91330194,147.39,147.31,6.24610792]
[1768423089432,2.06330395,147.38,147.31,6.24610792]
[1768423089937,2.06330395,147.38,147.31,12.35600792]
[1768423090334,0.04812933,147.36,147.31,12.35600792]
[1768423090734,12.01910194,147.42,147.32,6.29029434]
[1768423090939,2.06330395,147.4,147.32,6.24610792]
[1768423091942,0.04700848,147.37,147.34,6.1088]
[1768423094941,0.04700848,147.37,147.34,6.16013762]
[1768423095145,2.06330395,147.4,147.35,6.1084]
[1768423096337,0.04371159,147.39,147.35,6.1084]
[1768423096541,0.04371159,147.39,147.35,12.35450792]
[1768423096735,0.04371159,147.39,147.35,6.24610792]
[1768423096939,2.06330395,147.42,147.35,6.24610792]
[1768423097141,5.91330194,147.44,147.35,6.24610792]
[1768423097350,2.06330395,147.43,147.35,6.24610792]
[1768423097542,2.06330395,147.41,147.35,12.35440792]
[1768423098042,0.04675187,147.39,147.37,0.04741168]
[1768423099045,2.06330395,147.45,147.37,7.6535196]
[1768423099249,2.06330395,147.45,147.37,6.2935196]
[1768423100045,0.04408338,147.42,147.37,6.2935196]
[1768423100845,0.04408338,147.42,147.39,6.1067]
[1768423112153,0.04408338,147.42,147.4,6.1063]
[1768423112758,0.04408338,147.42,147.39,5.19173624]
[1768423113256,5.32299118,147.42,147.37,0.04741168]
[1768423114969,0.04408338,147.42,147.38,6.1071]
[1768423116853,0.04408338,147.42,147.39,6.1067]
[1768423117366,0.04408338,147.42,147.38,5.19173624]
[1768423117555,0.04408338,147.42,147.4,6.1064]
[1768423123664,5.2789078,147.49,147.4,6.55173624]
[1768423123868,8.50149098,147.54,147.45,5.19173624]
[1768423124071,8.50149098,147.57,147.47,5.19173624]
[1768423124267,5.2789078,147.57,147.47,5.19173624]
[1768423124768,0.04302643,147.53,147.51,0.0433483]
[1768423126168,3.22258318,147.59,147.51,11.33678454]
[1768423126473,5.2789078,147.58,147.51,0.0433483]
[1768423126772,8.50149098,147.59,147.51,0.0433483]
[1768423126962,5.2789078,147.58,147.51,0.0433483]
[1768423127165,0.04587255,147.56,147.51,0.0433483]
[1768423128574,0.04587255,147.56,147.51,6.1448483]
[1768423128869,0.04587255,147.56,147.51,100.14848454]
[1768423129074,0.04587255,147.56,147.52,5.19173624]
[1768423129270,5.2789078,147.61,147.52,5.19173624]
[1768423129476,5.2789078,147.61,147.54,11.29213624]
[1768423130179,5.2789078,147.63,147.54,11.29213624]
[1768423130374,0.04911818,147.6,147.57,0.0503433]
[1768423134279,0.04911818,147.6,147.57,4.84816515]
[1768423136765,14.21808766,147.64,147.57,4.84816515]
[1768423137166,14.21808766,147.64,147.58,4.79782185]
[1768423137377,9.51346569,147.64,147.58,4.79782185]
[1768423138279,9.51346569,147.64,147.6,4.79782185]
[1768423138872,4.74133624,147.71,147.62,3.26905339]
[1768423139069,4.74133624,147.7,147.62,3.26905339]
[1768423139673,4.74133624,147.72,147.62,3.26905339]
[1768423139869,80.1,147.75,147.57,174.9779]
[1768423139870,4.79071928,147.68,147.57,178.20048318]
[1768423140180,4.74133624,147.68,147.59,94.8648]
[1768423140379,95.94606196,147.75,147.59,94.8648]
[1768423140380,4.74133624,147.7,147.59,94.8648]
[1768423141074,4.78676271,147.66,147.57,80.1]
[1768423141380,4.74133624,147.69,147.59,94.8659]
[1768423141769,4.74133624,147.69,147.61,6.0974]
[1768423142173,0.04354131,147.66,147.57,80.1]
[1768423142375,4.74133624,147.66,147.57,86.199]
[1768423142574,4.74133624,147.66,147.57,80.1]
[1768423143281,0.04904354,147.63,147.6,0.04959565]
[1768423146677,4.74133624,147.69,147.6,6.14689565]
[1768423146887,4.74133624,147.69,147.59,94.8515]
[1768423147382,3.22258318,147.72,147.63,6.096]
[1768423147383,7.96391942,147.72,147.63,6.096]
[1768423147582,4.74133624,147.72,147.63,6.096]
[1768423147882,4.74133624,147.72,147.6,94.8504]
[1768423147883,4.74133624,147.79,147.66,0.04368981]
[1768423148080,4.74133624,147.78,147.69,6.0935]
[1768423148586,4.74133624,147.78,147.68,94.7938]
[1768423148878,4.74133624,147.78,147.67,3.22258318]
[1768423149092,4.78460982,147.74,147.64,80.06]
[1768423149384,4.74133624,147.74,147.64,80.06]
[1768423149580,3.22258318,147.78,147.66,6.0948]
[1768423149581,4.74133624,147.77,147.66,6.0948]
[1768423150084,0.05201069,147.73,147.7,0.05181734]
[1768423150279,0.05201069,147.73,147.64,83.28258318]
[1768423150280,4.79334693,147.73,147.64,80.06]
[1768423150482,4.74133624,147.73,147.64,80.06]
[1768423150888,4.74133624,147.7,147.64,80.06]
[1768423151185,4.74133624,147.7,147.6,6.0974]
[1768423151487,0.05004828,147.66,147.64,0.05048519]
[1768423152481,4.74133624,147.71,147.64,0.05048519]
[1768423153282,0.04647012,147.69,147.64,0.05048519]
[1768423153980,4.74133624,147.75,147.64,0.05048519]
[1768423154281,4.74133624,147.75,147.63,94.8315]
[1768423154589,10.83293624,147.75,147.65,6.0953]
[1768423154880,4.74133624,147.75,147.62,94.8374]
[1768423155086,6.0907,147.77,147.69,0.04871846]
[1768423155279,4.74133624,147.77,147.62,94.8374]
[1768423155686,6.0919,147.74,147.64,6.0956]
[1768423155889,6.0919,147.74,147.62,94.8374]
[1768423156389,4.74133624,147.75,147.67,0.04428555]
[1768423156790,6.0923,147.73,147.67,0.04428555]
[1768423156987,4.74133624,147.73,147.67,0.04428555]
[1768423157391,4.74133624,147.73,147.58,103.37799756]
[1768423157698,6.0935,147.7,147.58,103.37799756]
[1768423158378,6.0935,147.7,147.63,0.04520317]
[1768423158580,0.05155207,147.66,147.63,0.04520317]
[1768423158779,0.04522895,147.66,147.63,0.04771763]
[1768423159091,0.04522895,147.66,147.55,103.39709756]
[1768423159792,0.04522895,147.66,147.59,86.1378]
[1768423160192,0.04522895,147.66,147.61,0.04922514]
[1768423160793,4.74133624,147.71,147.61,0.04922514]
[1768423160994,4.74133624,147.71,147.59,80.04]
[1768423161793,4.74133624,147.71,147.64,0.04682265]
[1768423162494,0.0496192,147.69,147.64,0.04682265]
[1768423167604,0.0496192,147.69,147.64,6.14262265]
[1768423168311,0.0496192,147.69,147.64,0.04682265]
[1768423168814,99.99469776,147.76,147.64,0.04682265]
[1768423168815,4.23259109,147.76,147.64,0.04682265]
[1768423169017,4.23259109,147.76,147.62,115.1978]
[1768423169218,10.32529109,147.72,147.6,115.2072]
[1768423169514,4.23259109,147.71,147.57,94.866]
[1768423169814,9.47488885,147.71,147.57,174.886]
[1768423170119,0.04703719,147.65,147.63,0.05027453]
[1768423170314,10.32699109,147.68,147.63,0.05027453]
[1768423175312,6.0936,147.7,147.63,0.05027453]
[1768423175512,9.47488885,147.72,147.65,0.04605381]
[1768423175513,4.23259109,147.72,147.65,0.04605381]
[1768423175816,4.23259109,147.72,147.67,0.05041933]
[1768423176019,4.28256122,147.71,147.59,115.2142]
[1768423176215,4.23259109,147.71,147.59,115.2142]
[1768423176924,4.23259109,147.7,147.57,174.8869]
[1768423177118,0.04760383,147.66,147.64,0.04644526]
[1768423177618,0.04760383,147.66,147.57,80.02]
[1768423177826,10.32689109,147.68,147.57,80.02]
[1768423178423,10.32689109,147.68,147.59,6.0978]
[1768423178625,0.05005015,147.65,147.61,0.05025278]
[1768423179026,0.05005015,147.65,147.61,6.14735278]
[1768423179226,10.32689109,147.68,147.61,6.14735278]
[1768423179626,4.23259109,147.68,147.61,6.14735278]
[1768423180928,6.0939,147.69,147.61,6.14735278]
[1768423181134,6.0939,147.69,147.64,0.04728989]
[1768423182033,6.0945,147.68,147.64,0.04728989]
[1768423182932,8.14903592,147.7,147.64,0.04728989]
[1768423183622,0.049381,147.68,147.64,0.04728989]
[1768423183827,10.32549109,147.72,147.64,0.04728989]
[1768423184429,10.32549109,147.72,147.64,2.10282581]
[1768423184837,0.04460633,147.69,147.64,8.19842581]
[1768423185027,2.05553592,147.73,147.64,2.10282581]
[1768423185330,4.23259109,147.74,147.64,2.05553592]
[1768423185533,4.23259109,147.72,147.63,2.05553592]
[1768423186036,10.32519109,147.72,147.65,6.0953]
[1768423186229,0.04743813,147.69,147.66,0.04962507]
[1768423186624,0.04743813,147.69,147.58,115.2205]
[1768423186824,6.28812701,147.69,147.6,2.05553592]
[1768423187031,12.38192701,147.69,147.61,6.0968]
[1768423187234,4.23259109,147.68,147.59,2.05553592]
[1768423187725,0.04779567,147.65,147.62,0.04336055]
[1768423192037,4.23259109,147.68,147.62,6.13996055]
[1768423192731,6.0937,147.7,147.63,6.0962]
[1768423193133,0.05211918,147.68,147.65,0.04720349]
[1768423195643,0.05211918,147.68,147.59,96.90973592]
[1768423195844,2.05553592,147.7,147.61,2.05553592]
[1768423196438,0.05030866,147.67,147.64,0.05139205]
[1768423201749,5.72625843,147.64,147.57,80.02]
[1768423202550,0.04583233,147.62,147.59,0.05045084]
[1768423202747,5.72625843,147.64,147.59,0.05045084]
[1768423202942,5.72625843,147.62,147.54,228.27872532]
[1768423203647,3.67072251,147.62,147.54,228.27872532]
[1768423204048,0.04282152,147.59,147.57,0.04561069]
[1768423204647,2.05553592,147.63,147.57,0.04561069]
[1768423205751,0.04394397,147.61,147.57,0.04561069]
[1768423206653,3.67072251,147.68,147.57,0.04561069]
[1768423206853,2.05553592,147.66,147.55,96.93533592]
[1768423207047,186.9753,147.73,147.58,94.8632]
[1768423207048,3.67072251,147.72,147.58,94.8632]
[1768423207355,5.72625843,147.7,147.59,82.07553592]
[1768423207747,0.04626238,147.66,147.63,0.05147178]
[1768423208055,0.05162361,147.66,147.63,0.05021076]
[1768423211858,0.05162361,147.66,147.63,6.14631076]
[1768423212756,0.05162361,147.66,147.63,0.05021076]
[1768423213957,3.72234612,147.66,147.59,91.1178]
[1768423214253,3.72234612,147.66,147.59,80.02]
[1768423214658,9.81744612,147.66,147.59,80.02]
[1768423215055,9.81744612,147.66,147.61,0.04718788]
[1768423215256,3.72234612,147.66,147.61,0.04718788]
[1768423216261,0.05162361,147.66,147.61,0.04718788]
[1768423217560,0.05162361,147.66,147.61,6.14398788]
[1768423218755,0.05162361,147.66,147.62,6.0966]
[1768423219456,0.05162361,147.66,147.61,0.04718788]
[1768423220465,0.05162361,147.66,147.61,6.14418788]
[1768423220862,0.05162361,147.66,147.62,6.0964]
[1768423221664,0.05162361,147.66,147.63,6.0961]
[1768423221860,3.6088104,147.7,147.63,6.0961]
[1768423222866,3.6088104,147.7,147.61,94.8413]
[1768423223060,0.04458056,147.68,147.65,0.05214242]
[1768423224463,3.65339096,147.68,147.65,0.05214242]
[1768423224673,3.65339096,147.68,147.59,179.8735]
[1768423224859,3.6088104,147.68,147.63,6.096]
[1768423225469,3.6088104,147.68,147.64,6.0957]
[1768423225669,0.04484767,147.67,147.65,0.04279181]
[1768423227266,0.04484767,147.67,147.65,6.13819181]
[1768423230166,0.04484767,147.67,147.65,0.04279181]
[1768423230876,0.04484767,147.67,147.59,179.8735]
[1768423231769,0.04484767,147.67,147.63,6.096]
[1768423231964,0.04484767,147.67,147.64,0.04312089]
[1768423232573,3.65365807,147.67,147.59,85.02]
[1768423232878,3.65365807,147.67,147.59,80.02]
[1768423233679,3.65365807,147.67,147.62,0.04419922]
[1768423234873,3.65365807,147.67,147.62,6.14079922]
[1768423235775,0.04484767,147.67,147.63,6.0962]
[1768423236078,0.04484767,147.67,147.62,0.04419922]
[1768423237777,0.04484767,147.67,147.64,6.0958]
[1768423240986,3.6088104,147.73,147.62,0.04419922]
[1768423241185,3.6088104,147.76,147.65,94.8158]
[1768423241487,3.6088104,147.76,147.66,80.02]
[1768423241679,3.6088104,147.71,147.66,80.02]
[1768423241881,3.6088104,147.71,147.6,174.8683]
[1768423242088,0.00017989,147.67,147.64,0.04833446]
[1768423246293,3.60899029,147.67,147.6,80.02]
[1768423246793,3.60899029,147.67,147.6,86.1174]
[1768423247295,3.60899029,147.67,147.62,0.04429881]
[1768423249895,3.60899029,147.67,147.59,6.0977]
[1768423250897,9.70369029,147.67,147.59,6.0977]
[1768423251099,3.38477831,147.66,147.62,0.04323993]
[1768423251396,3.38477831,147.66,147.57,6.0985]
[1768423252500,0.0500533,147.63,147.6,0.04864484]
[1768423254099,3.43483161,147.63,147.56,80.02]
[1768423255089,3.43483161,147.63,147.58,0.0490951]
[1768423260204,0.0500533,147.63,147.58,0.0490951]
[1768423260899,0.0500533,147.63,147.58,6.1470951]
[1768423261307,0.0500533,147.63,147.59,6.0978]
[1768423261699,0.0500533,147.63,147.58,0.0490951]
[1768423262902,0.0500533,147.63,147.58,6.1473951]
[1768423263109,0.0500533,147.63,147.58,0.0490951]
[1768423263409,0.0500533,147.63,147.59,6.0977]
[1768423264508,0.0500533,147.63,147.58,0.0490951]
[1768423265613,3.43483161,147.63,147.58,0.0490951]
[1768423265805,3.43483161,147.63,147.58,6.1473951]
[1768423267712,3.43483161,147.63,147.58,0.0490951]
[1768423272913,3.38477831,147.62,147.56,6.0989]
[1768423273413,3.38477831,147.6,147.54,6.0997]
[1768423274109,3.43098155,147.58,147.52,6.1005]
[1768423274312,0.04620324,147.58,147.51,94.9063]
[1768423274614,3.38477831,147.6,147.51,94.9063]
[1768423275215,0.04759612,147.57,147.5,94.9149]
[1768423275613,0.00435619,147.57,147.51,98.1174147]
[1768423275813,0.00435619,147.57,147.52,0.04828546]
[1768423276420,0.00435619,147.57,147.54,6.0998]
[1768423276815,0.00435619,147.57,147.52,0.04828546]
[1768423277319,3.3891345,147.57,147.52,0.04828546]
[1768423280520,0.00435619,147.57,147.52,0.04828546]
[1768423281910,0.00435619,147.57,147.52,6.14898546]
[1768423282111,0.00435619,147.57,147.52,0.04828546]
[1768423283818,3.50652111,147.57,147.52,0.04828546]
[1768423284515,4.86652111,147.57,147.47,232.06137418]
[1768423284820,3.50216492,147.56,147.44,175.0137]
[1768423285017,3.50216492,147.56,147.44,178.2249147]
[1768423285221,3.50216492,147.54,147.47,6.1028]
[1768423285626,0.04457109,147.52,147.49,0.0496332]
[1768423286323,3.54673601,147.52,147.47,6.1028]
[1768423287425,3.54673601,147.52,147.48,0.04908502]
[1768423289934,3.50216492,147.5,147.4,94.9751]
[1768423290129,3.50216492,147.5,147.41,2.05969864]
[1768423290528,3.50216492,147.5,147.44,6.104]
[1768423291028,0.0495533,147.48,147.44,6.104]
[1768423292026,3.55171822,147.48,147.45,0.04882582]
[1768423293931,0.0495533,147.48,147.45,0.04882582]
[1768423294131,3.50216492,147.54,147.45,2.10852446]
[1768423294319,3.50216492,147.54,147.47,2.05969864]
[1768423294723,3.50216492,147.6,147.49,2.05969864]
[1768423294931,3.50216492,147.59,147.51,2.05969864]
[1768423295134,0.04763373,147.56,147.54,0.05022551]
[1768423296937,3.50216492,147.59,147.54,0.05022551]
[1768423297138,3.50216492,147.62,147.54,0.05022551]
[1768423297437,3.50216492,147.62,147.53,2.05969864]
[1768423297827,0.04970046,147.59,147.56,0.04492523]
[1768423302039,3.50216492,147.67,147.6,6.0974]
[1768423302936,0.04581165,147.65,147.62,0.04290207]
[1768423303534,0.04581165,147.65,147.62,6.13940207]
[1768423305130,0.04581165,147.65,147.62,0.04290207]
[1768423305632,0.04581165,147.65,147.62,6.13930207]
[1768423305833,0.04581165,147.65,147.62,0.04290207]
[1768423306033,3.50216492,147.69,147.63,2.05969864]
[1768423306238,3.50216492,147.73,147.65,6.0951]
[1768423307040,0.04951034,147.7,147.68,0.04630991]
[1768423307240,0.04951034,147.7,147.65,6.0951]
[1768423310942,0.04951034,147.7,147.66,6.14658765]
[1768423311344,3.2758689,147.7,147.66,0.05168765]
[1768423316943,0.04951034,147.7,147.66,6.14658765]
[1768423324552,3.22635856,147.75,147.66,2.11138629]
[1768423324753,3.22635856,147.75,147.66,2.05969864]
[1768423325545,3.22635856,147.75,147.69,0.05163077]
[1768423325749,0.04712756,147.72,147.69,0.05163077]
[1768423330950,3.27348612,147.72,147.67,6.0943]
[1768423331954,0.04712756,147.72,147.68,6.13908913]
[1768423332353,0.04712756,147.72,147.68,0.04488913]
[1768423332653,3.22635856,147.78,147.71,6.0929]
[1768423333554,0.04465858,147.76,147.73,0.04449912]
[1768423333853,3.27101714,147.76,147.69,6.0934]
[1768423334855,3.27101714,147.76,147.71,0.04998504]
[1768423336452,0.04465858,147.76,147.71,0.04998504]
[1768423337056,3.22635856,147.83,147.71,2.10968368]